lending/lending_fUSD_20250913
["ID","MTS","AMOUNT","RATE_DAILY","PERIOD"]
[385274130,1757725846388,-150.66,0.00033807,2]
[385274131,1757725846396,-2957.11297113,0.00033817,2]
[385274132,1757725846406,-12377.30620583,0.00033817,2]
[385274135,1757725846462,-509.10347646,0.00033817,2]
[385274139,1757725846598,-506.7,0.00033817,2]
[385274140,1757725924778,300.0,0.00029851,120]
[385274145,1757726541131,2000.0,0.00030136,120]
[385274146,1757726586558,1000.0,0.00030136,120]
[385274205,1757726755086,-8725.00377473,0.0001995,15]
[385274206,1757726755108,-31164.61655534,0.0002,2]
[385274207,1757726826112,-223.77206333,0.00019999,2]
[385274208,1757726830076,-76.22793667,0.00019999,2]
[385274209,1757726830096,-155.68193772,0.00019999,2]
[385274210,1757726830121,-10326.26543446,0.0002,2]
[385274211,1757726830141,-420.0,0.00021777,2]
[385274212,1757726830162,-150.12276812,0.000219,2]
[385274213,1757726830182,-5850.40709141,0.000219,2]
[385274214,1757726830202,-250.0,0.00022,2]
[385274215,1757726830223,-587.0,0.00023712,2]
[385274216,1757726830243,-282.17599952,0.00024,2]
[385274217,1757726830263,-250.0,0.00024624,2]
[385274218,1757726830283,-1200.0,0.00024674,2]
[385274219,1757726830302,-1438.94849778,0.00024675,2]
[385274220,1757726830322,-6599.07115183,0.00024675,2]
[385274221,1757726830344,-500.0,0.000248,2]
[385274222,1757726830364,-151.0,0.00024885,2]
[385274223,1757726830384,-151.0,0.00024885,2]
[385274224,1757726830403,-151.0,0.00024885,2]
[385274225,1757726830423,-151.0,0.00024885,2]
[385274226,1757726830443,-151.0,0.00024885,2]
[385274227,1757726830462,-151.0,0.00024885,2]
[385274228,1757726830483,-151.0,0.00024885,2]
[385274229,1757726830502,-418.0,0.00024899,2]
[385274230,1757726830522,-500.0,0.000249,2]
[385274231,1757726830546,-7297.32181066,0.000249,2]
[385274232,1757726830567,-823.0,0.0002582,2]
[385274233,1757726830587,-1200.0,0.00026861,2]
[385274234,1757726830607,-250.0,0.00027033,2]
[385274235,1757726830626,-517.0,0.00027137,2]
[385274236,1757726830646,-150.3,0.00027397,2]
[385274237,1757726830667,-164.385409,0.00027511,2]
[385274238,1757726830687,-1152.0,0.00028115,2]
[385274239,1757726830707,-289.75,0.00028151,2]
[385274240,1757726830727,-212.94159924,0.00029787,2]
[385274241,1757726830746,-515.48351874,0.00029787,2]
[385274242,1757726830765,-161.32142504,0.0003,5]
[385274243,1757726830784,-352.4055288,0.00030381,7]
[385274245,1757726840146,-151.0,0.0002466,2]
[385274246,1757726840166,-151.0,0.0002466,2]
[385274247,1757726840189,-151.0,0.0002466,2]
[385274248,1757726840210,-374.0,0.00030615,2]
[385274249,1757726840231,-500.0,0.00030857,7]
[385274250,1757726840252,-500.0,0.00031138,7]
[385274251,1757726840273,-500.0,0.0003124,7]
[385274252,1757726840292,-500.0,0.0003164,7]
[385274253,1757726840312,-250.0,0.00031966,2]
[385274254,1757726840333,-160.0,0.00032074,2]
[385274255,1757726840353,-160.0,0.00032074,2]
[385274256,1757726840372,-3997.07782726,0.00032232,2]
[385274257,1757726853085,-500.0,0.00031691,7]
[385274258,1757726853106,-500.0,0.00032126,3]
[385274259,1757726853130,-500.0,0.00032126,7]
[385274260,1757726853152,-1802.92217274,0.00032232,2]
[385274261,1757726853175,-150.3,0.00032307,2]
[385274262,1757726853198,-445.53561948,0.00032349,2]
[385274263,1757726853221,-5470.59,0.0003235,2]
[385274264,1757726853242,-500.0,0.00032451,7]
[385274265,1757726853265,-253.59,0.0003247,30]
[385274266,1757726853288,-588.0,0.00032509,7]
[385274267,1757726853310,-150.0,0.00032697,7]
[385274268,1757726853332,-277.35679052,0.00032742,2]
[385274269,1757726853354,-500.0,0.00032757,7]
[385274270,1757726853378,-588.0,0.00032834,2]
[385274271,1757726853401,-588.0,0.00032871,2]
[385274272,1757726853423,-542.41,0.00032978,2]
[385274273,1757726853444,-1190.97,0.00032978,2]
[385274274,1757726853467,-161.71,0.00032978,2]
[385274275,1757726853488,-410.6,0.00032978,2]
[385274276,1757726853509,-174.66,0.00032978,2]
[385274277,1757726853530,-16416.73771491,0.00033,7]
[385274285,1757727029661,-6211.0,0.0002,5]
[385274287,1757727032190,-20494.0,0.0002,5]
[385274288,1757727032203,-522.04790989,0.0002,5]
[385274293,1757727032290,-5062.82633283,0.0002,5]
[385274294,1757727032299,-7520.94797491,0.00022,15]
[385274295,1757727032308,-7005.42893832,0.000249,2]
[385274296,1757727032317,-2001.79088205,0.000286,2]
[385274297,1757727032326,-153.0,0.00031,120]
[385274298,1757727032335,-487.58,0.00032707,2]
[385274299,1757727032344,-305.64,0.00032708,2]
[385274300,1757727032353,-311.87493363,0.00032999,7]
[385274301,1757727032362,-7702.51437499,0.00033,7]
[385274302,1757727032375,-6203.16397063,0.00033,7]
[385274303,1757727032556,-4547.62183337,0.00033,7]
[385274304,1757727032565,-557.66,0.00033,2]
[385274306,1757727032574,-174.66,0.00033078,2]
[385274308,1757727032584,-166.91,0.00033078,2]
[385274310,1757727032593,-410.6,0.00033078,2]
[385274312,1757727032602,-2214.97,0.00033078,2]
[385274314,1757727032611,-588.0,0.00033091,2]
[385274316,1757727032621,-150.3,0.00033165,2]
[385274318,1757727032630,-1084.18,0.00033178,2]
[385274320,1757727032639,-588.0,0.00033198,2]
[385274322,1757727032648,-542.41,0.000332,2]
[385274324,1757727032657,-1190.97,0.000333,2]
[385274326,1757727032666,-542.41,0.000333,2]
[385274328,1757727032675,-168.27,0.000333,2]
[385274330,1757727032685,-395.93,0.000333,2]
[385274332,1757727032694,-465.0,0.00033456,2]
[385274334,1757727032704,-500.0,0.00033604,7]
[385274336,1757727032713,-542.41,0.00033627,2]
[385274338,1757727032723,-542.41,0.00033627,2]
[385274340,1757727032733,-542.41,0.00033627,2]
[385274342,1757727032743,-542.41,0.00033627,2]
[385274344,1757727032752,-507.69,0.00033627,2]
[385274346,1757727032761,-1166.394,0.00033648,2]
[385274348,1757727032771,-5000.0,0.00033648,2]
[385274350,1757727032780,-1173.50696848,0.00033648,2]
[385274352,1757727032789,-888.9847341,0.00033732,2]
[385274354,1757727032799,-290.92257874,0.00033747,2]
[385274356,1757727032808,-27659.8098779,0.00033748,2]
[385274358,1757727032817,-4181.6065255,0.00033748,2]
[385274359,1757727032827,-2800.0,0.000338,12]
[385274360,1757727032836,-200.0,0.00033817,2]
[385274361,1757727032845,-2539.61173403,0.00033844,2]
[385274362,1757727032856,-266.76562038,0.00033844,2]
[385274371,1757727032984,-652.68066011,0.00033844,2]
[385274372,1757727032995,-2686.02198548,0.00033844,2]
[385274373,1757727033004,-174.4004049,0.00033899,15]
[385274374,1757727033014,-457.62304426,0.000339,2]
[385274375,1757727033023,-5600.0,0.000339,12]
[385274376,1757727033032,-389.452777,0.000339,9]
[385274377,1757727033042,-151.0,0.00033918,2]
[385274378,1757727033052,-245.35459849,0.00033918,7]
[385274379,1757727033062,-547.0,0.00033918,7]
[385274380,1757727033072,-152.0,0.00033918,7]
[385274381,1757727033082,-547.0,0.00033918,7]
[385274382,1757727033091,-547.0,0.00033918,7]
[385274383,1757727033100,-1226.0,0.00033918,7]
[385274384,1757727033110,-500.0,0.00033922,7]
[385274385,1757727033120,-168.0,0.00033948,2]
[385274386,1757727033130,-151.22,0.00033989,2]
[385274387,1757727033140,-307.5518916,0.00033998,10]
[385274388,1757727033150,-307.39753443,0.00033999,10]
[385274389,1757727033160,-2421.0122702,0.00033999,2]
[385274390,1757727033169,-37821.57023418,0.00033999,2]
[385274391,1757727033326,-1153.45004019,0.00033999,2]
[385274392,1757727033337,-627.03415411,0.00033999,2]
[385274393,1757727033349,-807.498172,0.00033999,2]
[385274394,1757727033377,-382.98998898,0.00033999,2]
[385274397,1757727038474,-2166.37608666,0.00033999,2]
[385274399,1757727038547,-1476.42,0.00033999,2]
[385274400,1757727038559,-576.52408716,0.00033999,2]
[385274401,1757727038585,-1410.98868585,0.00033999,2]
[385274402,1757727038596,-4431.55663427,0.00033999,2]
[385274403,1757727038629,-2125.10743842,0.00033999,2]
[385274404,1757727038640,-370.9049188,0.00033999,2]
[385274405,1757727038651,-19722.6048827,0.00033999,2]
[385274415,1757727040222,-174.47069256,0.00033899,2]
[385274416,1757727040231,-131.82349306,0.00033999,2]
[385274417,1757727040541,-85534.13472592,0.00033999,2]
[385274418,1757727040588,-694.99999995,0.00033999,2]
[385274419,1757727040599,-3374.51489752,0.00033999,2]
[385274420,1757727040610,-18510.0,0.00033999,2]
[385274421,1757727040669,-465.61516557,0.00033999,2]
[385274422,1757727040680,-13935.0,0.00033999,2]
[385274431,1757727043188,-224.47298931,0.00024899,2]
[385274432,1757727043198,-51457.45695641,0.00033999,2]
[385274433,1757727043312,-74226.09384454,0.00033999,2]
[385274434,1757727043390,-738.0,0.00033999,2]
[385274439,1757727043682,-29.6763969,0.00033999,2]
[385274440,1757727043694,-309749.58736531,0.00033999,2]
[385274734,1757727046600,-14658.29561679,0.00033999,2]
[385274736,1757727046612,-17408.03704137,0.00033999,2]
[385274738,1757727046625,-4545.65762627,0.00033999,2]
[385274741,1757727046638,-1369.17953815,0.00033999,2]
[385274746,1757727046679,-4222.04020338,0.00033999,2]
[385274993,1757727539186,239.89,0.00016264,2]
[385274994,1757727951619,366.13551638,0.00019732,2]
[385274995,1757727956212,752.7,0.00030137,120]
[385274996,1757728001397,167.3048307,0.00030137,120]
[385274997,1757728039103,-152.21823229,0.00024557,2]
[385274998,1757728039124,-122.12309463,0.00024699,2]
[385275012,1757728232364,-542.31629098,0.00024598,2]
[385275013,1757728232373,-3764.9976555,0.00024599,2]
[385275014,1757728232385,-852.68973297,0.00024599,2]
[385275015,1757728232420,-164.42972708,0.00024598,2]
[385275016,1757728232429,-1114.37762404,0.00024599,2]
[385275017,1757728232438,-1439.78232087,0.00024675,2]
[385275018,1757728232447,-224.82659607,0.00024699,2]
[385275019,1757728232456,-500.0,0.00024799,2]
[385275020,1757728232465,-1200.0,0.00024899,2]
[385275021,1757728232474,-7471.69401074,0.000249,2]
[385275022,1757728232482,-152.0,0.00025557,3]
[385275023,1757728232491,-152.0,0.0002611,3]
[385275024,1757728232500,-291.55,0.00026226,2]
[385275025,1757728232509,-4506.26135552,0.00026669,2]
[385275026,1757728232519,-250.0,0.00027013,2]
[385275027,1757728232528,-311.64090126,0.00027013,2]
[385275028,1757728232537,-1680.0,0.00027099,2]
[385275029,1757728232546,-574.77136,0.00027137,2]
[385275030,1757728232556,-250.0,0.00027169,2]
[385275031,1757728232565,-250.0,0.00027169,2]
[385275032,1757728232575,-151.61,0.00027397,2]
[385275033,1757728232584,-212.94159924,0.00027436,2]
[385275034,1757728232593,-160.0,0.00027436,2]
[385275035,1757728232603,-700.87292314,0.00029065,2]
[385275036,1757728232612,-151.0,0.00029341,7]
[385275037,1757728232622,-158.493546,0.00029341,7]
[385275038,1757728232631,-424.0,0.00029492,2]
[385275039,1757728232641,-764.0,0.00029493,2]
[385275040,1757728232656,-225.26991355,0.00029766,2]
[385275041,1757728232667,-155.147795,0.00029833,7]
[385275042,1757728232676,-250.0,0.00030019,2]
[385275043,1757728232686,-3000.25388798,0.0003013,2]
[385275044,1757728232697,-500.0,0.00030211,7]
[385275045,1757728232707,-1390.70603342,0.00030214,2]
[385275046,1757728232716,-609.08,0.00030379,2]
[385275047,1757728232727,-256.25,0.00030403,30]
[385275048,1757728232736,-500.0,0.00030463,7]
[385275049,1757728232746,-500.0,0.00030521,7]
[385275050,1757728232755,-774.5116923,0.00030545,2]
[385275051,1757728232764,-500.0,0.0003056,7]
[385275052,1757728232774,-305.64,0.00030685,2]
[385275053,1757728232783,-500.0,0.00030934,3]
[385275054,1757728232792,-167.0,0.00031,120]
[385275055,1757728232802,-1014.99341289,0.00031,2]
[385275056,1757728232812,-153.0,0.00031,120]
[385275057,1757728232821,-500.0,0.00031131,7]
[385275058,1757728232830,-500.0,0.00031349,7]
[385275059,1757728232839,-150.0,0.00031756,2]
[385275060,1757728232849,-725.297,0.00031824,30]
[385275061,1757728232865,-500.0,0.00031835,7]
[385275063,1757728232874,-500.0,0.00032403,7]
[385275064,1757728232883,-290.79177836,0.00032416,2]
[385275065,1757728232892,-207.79080273,0.00032416,2]
[385275066,1757728232902,-30000.0,0.00032417,30]
[385275067,1757728232911,-160.5,0.00032559,2]
[385275068,1757728232921,-151.0,0.00032597,2]
[385275069,1757728232930,-151.0,0.00032597,2]
[385275070,1757728232939,-151.0,0.00032597,2]
[385275071,1757728232949,-151.0,0.00032597,2]
[385275072,1757728232959,-277.35679052,0.00032597,2]
[385275073,1757728232968,-151.0,0.00032597,2]
[385275074,1757728232978,-151.0,0.00032597,2]
[385275075,1757728232987,-151.0,0.00032597,2]
[385275076,1757728232996,-151.0,0.00032597,2]
[385275078,1757728233006,-151.0,0.00032597,2]
[385275079,1757728233015,-714.5455446,0.00032597,2]
[385275080,1757728233024,-151.0,0.00032597,2]
[385275081,1757728233034,-286.68600503,0.00032597,2]
[385275083,1757728233044,-31602.52,0.00032617,2]
[385275085,1757728233054,-150.0,0.00032667,7]
[385275087,1757728233064,-500.0,0.00032721,7]
[385275089,1757728233073,-500.0,0.00032782,7]
[385275091,1757728233083,-213.0,0.0003282,7]
[385275093,1757728233093,-1214.25242217,0.000329,2]
[385275095,1757728233103,-903.90986573,0.00032979,2]
[385275097,1757728233113,-2000.0,0.00033,2]
[385275099,1757728233122,-2000.0,0.00033,2]
[385275101,1757728233132,-2000.0,0.00033,2]
[385275103,1757728233142,-2000.0,0.00033,2]
[385275105,1757728233151,-2000.0,0.00033,2]
[385275107,1757728233161,-894.34,0.00033,2]
[385275109,1757728233170,-500.0,0.00033028,7]
[385275111,1757728233180,-1747.87,0.00033059,2]
[385275113,1757728233189,-803.49,0.00033059,2]
[385275115,1757728233199,-940.43,0.00033059,2]
[385275117,1757728233208,-151.61,0.00033165,2]
[385275119,1757728233218,-1214.25242215,0.00033312,2]
[385275121,1757728233228,-199.096308,0.00033332,7]
[385275123,1757728233237,-165.030238,0.00033332,7]
[385275125,1757728233248,-265.068846,0.00033332,7]
[385275127,1757728233258,-265.068846,0.00033332,7]
[385275129,1757728233268,-265.068846,0.00033332,7]
[385275131,1757728233277,-265.068846,0.00033332,7]
[385275133,1757728233286,-151.0,0.00033332,7]
[385275135,1757728233296,-276.94336,0.00033332,7]
[385275137,1757728233305,-151.0,0.00033332,7]
[385275139,1757728233315,-151.0,0.00033332,7]
[385275141,1757728233325,-151.0,0.00033332,7]
[385275143,1757728233335,-151.0,0.00033332,7]
[385275145,1757728233344,-152.249766,0.00033332,7]
[385275147,1757728233354,-151.0,0.00033332,7]
[385275149,1757728233363,-151.0,0.00033332,7]
[385275151,1757728233373,-153.54586,0.00033332,7]
[385275153,1757728233382,-151.0,0.00033332,7]
[385275155,1757728233391,-153.503129,0.00033332,7]
[385275157,1757728233401,-153.725194,0.00033332,7]
[385275158,1757728233410,-151.0,0.00033332,7]
[385275161,1757728233422,-151.0,0.00033332,7]
[385275163,1757728233435,-151.0,0.00033332,7]
[385275165,1757728233445,-151.0,0.00033332,7]
[385275167,1757728233454,-151.0,0.00033332,7]
[385275169,1757728233464,-151.0,0.00033332,7]
[385275171,1757728233474,-247.027448,0.00033332,7]
[385275173,1757728233484,-153.598562,0.00033332,7]
[385275175,1757728233493,-1997.754677,0.00033332,7]
[385275177,1757728233503,-1997.754677,0.00033332,7]
[385275179,1757728233513,-151.0,0.00033332,7]
[385275181,1757728233523,-1997.754677,0.00033332,7]
[385275183,1757728233533,-1997.754677,0.00033332,7]
[385275185,1757728233542,-151.0,0.00033332,7]
[385275187,1757728233552,-151.0,0.00033332,7]
[385275189,1757728233562,-151.0,0.00033332,7]
[385275191,1757728233572,-151.0,0.00033332,7]
[385275193,1757728233581,-278.233106,0.00033332,7]
[385275195,1757728233591,-151.0,0.00033332,7]
[385275197,1757728233601,-151.0,0.00033332,7]
[385275199,1757728233611,-151.0,0.00033332,7]
[385275201,1757728233620,-213.0,0.00033347,2]
[385275203,1757728233630,-283.0,0.00033376,2]
[385275205,1757728233640,-752.68308315,0.00033377,2]
[385275207,1757728233652,-160.0,0.00033389,2]
[385275209,1757728233662,-160.0,0.00033389,2]
[385275211,1757728233671,-195.52947657,0.0003351,4]
[385275213,1757728233680,-288.43297818,0.0003351,4]
[385275215,1757728233690,-154.07625698,0.0003351,4]
[385275216,1757728233699,-156.34432433,0.0003351,4]
[385275217,1757728233708,-153.58272469,0.0003351,4]
[385275218,1757728233719,-153.68201787,0.0003351,4]
[385275219,1757728233728,-156.67885995,0.0003351,4]
[385275220,1757728233738,-151.938286,0.0003351,7]
[385275221,1757728233749,-151.0,0.0003351,7]
[385275222,1757728233759,-151.0,0.0003351,7]
[385275223,1757728233769,-151.0,0.0003351,7]
[385275224,1757728233779,-151.0,0.0003351,7]
[385275225,1757728233790,-416.059924,0.0003351,7]
[385275226,1757728233799,-151.0,0.0003351,7]
[385275227,1757728233810,-416.059924,0.0003351,7]
[385275228,1757728233819,-416.059924,0.0003351,7]
[385275229,1757728233828,-416.059924,0.0003351,7]
[385275230,1757728233838,-155.41502,0.0003351,7]
[385275231,1757728233850,-303.078072,0.0003351,7]
[385275232,1757728233860,-498.275362,0.0003351,7]
[385275233,1757728233870,-303.078072,0.0003351,7]
[385275234,1757728233880,-156.778847,0.0003351,7]
[385275235,1757728233889,-498.275362,0.0003351,7]
[385275236,1757728233899,-303.078072,0.0003351,7]
[385275237,1757728233908,-498.275362,0.0003351,7]
[385275238,1757728233919,-303.078072,0.0003351,7]
[385275239,1757728233929,-498.275362,0.0003351,7]
[385275240,1757728233939,-277.472314,0.0003351,7]
[385275241,1757728233949,-277.472314,0.0003351,7]
[385275242,1757728233959,-277.472314,0.0003351,7]
[385275243,1757728233969,-277.472314,0.0003351,7]
[385275244,1757728233978,-151.0,0.0003351,7]
[385275245,1757728233988,-151.0,0.0003351,7]
[385275246,1757728233998,-151.0,0.0003351,7]
[385275247,1757728234009,-151.0,0.0003351,7]
[385275248,1757728234018,-160.365182,0.0003351,7]
[385275249,1757728234028,-160.365182,0.0003351,7]
[385275250,1757728234038,-160.365182,0.0003351,7]
[385275251,1757728234047,-160.365182,0.0003351,7]
[385275252,1757728234057,-151.0,0.0003351,7]
[385275253,1757728234067,-151.0,0.0003351,7]
[385275254,1757728234077,-151.0,0.0003351,7]
[385275255,1757728234087,-151.0,0.0003351,7]
[385275256,1757728234097,-151.0,0.0003351,7]
[385275257,1757728234107,-152.949261,0.0003351,7]
[385275258,1757728234117,-151.0,0.0003351,7]
[385275259,1757728234127,-179.493373,0.0003351,7]
[385275260,1757728234138,-151.0,0.0003351,7]
[385275261,1757728234148,-151.0,0.0003351,7]
[385275262,1757728234158,-179.493373,0.0003351,7]
[385275263,1757728234168,-151.0,0.0003351,7]
[385275264,1757728234178,-179.493373,0.0003351,7]
[385275265,1757728234188,-151.0,0.0003351,7]
[385275266,1757728234198,-179.493373,0.0003351,7]
[385275267,1757728234207,-151.0,0.0003351,7]
[385275268,1757728234217,-151.0,0.00033523,7]
[385275269,1757728234227,-403.512526,0.00033523,7]
[385275270,1757728234237,-403.512526,0.00033523,7]
[385275271,1757728234475,-151.0,0.00033523,7]
[385275272,1757728234491,-403.512526,0.00033523,7]
[385275273,1757728234501,-151.0,0.00033523,7]
[385275274,1757728234511,-403.512526,0.00033523,7]
[385275275,1757728234520,-156.621697,0.00033523,7]
[385275276,1757728234530,-151.0,0.00033523,7]
[385275277,1757728234540,-211.0,0.00033583,2]
[385275278,1757728234550,-211.0,0.00033638,2]
[385275279,1757728234559,-752.68308315,0.00033642,2]
[385275280,1757728234567,-500.0,0.00033722,7]
[385275281,1757728234576,-292.38,0.00033722,7]
[385275282,1757728234586,-1214.25242215,0.00033725,2]
[385275283,1757728234595,-211.0,0.0003375,7]
[385275284,1757728234605,-515.48351874,0.000338,2]
[385275285,1757728234614,-283.0,0.00033808,120]
[385275286,1757728234623,-500.0,0.00033824,7]
[385275287,1757728234634,-168.0,0.00033833,2]
[385275288,1757728234645,-504.6091,0.00033859,2]
[385275289,1757728234659,-174.4004049,0.0003388,15]
[385275290,1757728234669,-212.78935876,0.00033884,2]
[385275291,1757728234678,-151.0,0.00033889,7]
[385275292,1757728234689,-151.0,0.00033889,7]
[385275293,1757728234699,-166.054777,0.00033889,7]
[385275294,1757728234708,-151.0,0.00033889,7]
[385275295,1757728234718,-158.312208,0.00033889,7]
[385275296,1757728234728,-151.0,0.00033889,7]
[385275297,1757728234737,-151.0,0.00033889,7]
[385275298,1757728234747,-151.0,0.00033889,7]
[385275299,1757728234756,-752.68308315,0.00033896,2]
[385275300,1757728234766,-151.0,0.00033899,7]
[385275301,1757728234775,-214.251045,0.00033899,7]
[385275302,1757728234785,-151.0,0.00033899,7]
[385275303,1757728234795,-151.0,0.00033899,7]
[385275304,1757728234804,-416.059924,0.00033899,7]
[385275305,1757728234814,-151.0,0.00033899,7]
[385275306,1757728234823,-416.059924,0.00033899,7]
[385275307,1757728234832,-416.059924,0.00033899,7]
[385275308,1757728234842,-416.059924,0.00033899,7]
[385275309,1757728234851,-303.078072,0.00033899,7]
[385275310,1757728234861,-498.275362,0.00033899,7]
[385275311,1757728234871,-303.078072,0.00033899,7]
[385275312,1757728234880,-498.275362,0.00033899,7]
[385275313,1757728234891,-303.078072,0.00033899,7]
[385275314,1757728234900,-498.275362,0.00033899,7]
[385275315,1757728234909,-303.078072,0.00033899,7]
[385275316,1757728234919,-498.275362,0.00033899,7]
[385275317,1757728234928,-277.472314,0.00033899,7]
[385275318,1757728234938,-277.472314,0.00033899,7]
[385275319,1757728234948,-277.472314,0.00033899,7]
[385275320,1757728234957,-277.472314,0.00033899,7]
[385275321,1757728234967,-151.0,0.00033899,7]
[385275322,1757728234976,-151.0,0.00033899,7]
[385275323,1757728234985,-151.0,0.00033899,7]
[385275324,1757728234994,-151.0,0.00033899,7]
[385275325,1757728235004,-160.365182,0.00033899,7]
[385275326,1757728235013,-160.365182,0.00033899,7]
[385275327,1757728235024,-160.365182,0.00033899,7]
[385275328,1757728235032,-160.365182,0.00033899,7]
[385275329,1757728235042,-151.0,0.00033899,7]
[385275330,1757728235051,-151.0,0.00033899,7]
[385275331,1757728235060,-151.0,0.00033899,7]
[385275332,1757728235069,-151.0,0.00033899,7]
[385275333,1757728235078,-151.0,0.00033899,7]
[385275334,1757728235087,-151.0,0.00033899,7]
[385275335,1757728235096,-179.493373,0.00033899,7]
[385275336,1757728235106,-151.0,0.00033899,7]
[385275337,1757728235115,-151.0,0.00033899,7]
[385275338,1757728235124,-179.493373,0.00033899,7]
[385275339,1757728235133,-151.0,0.00033899,7]
[385275340,1757728235143,-179.493373,0.00033899,7]
[385275341,1757728235152,-247.623961,0.00033899,7]
[385275342,1757728235161,-179.493373,0.00033899,7]
[385275343,1757728235171,-153.049818,0.00033899,7]
[385275344,1757728235181,-265.068846,0.00033899,7]
[385275345,1757728235190,-265.068846,0.00033899,7]
[385275346,1757728235201,-265.068846,0.00033899,7]
[385275347,1757728235210,-265.068846,0.00033899,7]
[385275348,1757728235220,-151.0,0.00033899,7]
[385275349,1757728235228,-151.0,0.00033899,7]
[385275350,1757728235237,-151.0,0.00033899,7]
[385275351,1757728235247,-151.0,0.00033899,7]
[385275352,1757728235256,-151.0,0.00033899,7]
[385275353,1757728235265,-151.0,0.00033899,7]
[385275354,1757728235274,-151.0,0.00033899,7]
[385275355,1757728235283,-151.0,0.00033899,7]
[385275356,1757728235292,-151.0,0.00033899,7]
[385275357,1757728235301,-151.0,0.00033899,7]
[385275358,1757728235311,-151.0,0.00033899,7]
[385275359,1757728235320,-151.0,0.00033899,7]
[385275360,1757728235329,-151.0,0.00033899,7]
[385275361,1757728235338,-151.0,0.00033899,7]
[385275362,1757728235348,-1997.754677,0.00033899,7]
[385275363,1757728235357,-1997.754677,0.00033899,7]
[385275364,1757728235366,-151.0,0.00033899,7]
[385275365,1757728235375,-1248.43195603,0.00033899,7]
[385275366,1757728235420,-749.32272097,0.00033899,7]
[385275367,1757728235429,-1997.754677,0.00033899,7]
[385275368,1757728235439,-151.0,0.00033899,7]
[385275369,1757728235448,-151.0,0.00033899,7]
[385275370,1757728235457,-191.693572,0.00033899,7]
[385275371,1757728235466,-151.0,0.00033899,7]
[385275372,1757728235475,-151.0,0.00033899,7]
[385275373,1757728235485,-151.0,0.00033899,7]
[385275374,1757728235495,-190.605782,0.00033899,7]
[385275375,1757728235504,-151.0,0.00033899,7]
[385275376,1757728235514,-152.894053,0.00033899,7]
[385275377,1757728235526,-151.0,0.00033899,7]
[385275378,1757728235535,-257.846901,0.00033899,7]
[385275379,1757728235545,-151.0,0.00033899,7]
[385275380,1757728235554,-151.0,0.00033899,7]
[385275381,1757728235564,-151.0,0.00033899,7]
[385275382,1757728235573,-151.0,0.00033899,7]
[385275383,1757728235582,-151.0,0.00033899,7]
[385275384,1757728235591,-262.38549152,0.00033899,7]
[385275385,1757728235601,-151.0,0.00033899,7]
[385275386,1757728235610,-153.660541,0.00033899,7]
[385275387,1757728235619,-5675.1042615,0.00033899,2]
[385275388,1757728235630,-743.60537916,0.00033899,2]
[385275389,1757728235651,-17385.07515934,0.00033899,2]
[385275390,1757728235660,-470.4157,0.000339,2]
[385275391,1757728235669,-1000.0,0.000339,2]
[385275392,1757728235679,-5000.0,0.000339,2]
[385275393,1757728235688,-547.0,0.00033911,7]
[385275394,1757728235697,-152.0,0.00033911,7]
[385275395,1757728235706,-1226.0,0.00033911,7]
[385275396,1757728235715,-547.0,0.00033911,7]
[385275397,1757728235724,-152.0,0.00033911,7]